bitfinex/quotes_SOLUSD_20251126
["timestamp","ask_amount","ask_price","bid_price","bid_amount"]
[1764174125833,0.66,137.99,137.95,3.22]
[1764174126316,0.66,137.99,137.95,15.25100519]
[1764174126712,16.308864,138.01,137.98,4.78252447]
[1764174126915,0.66,138.01,137.96,9.76426806]
[1764174127132,0.66,138.01,137.98,4.78252447]
[1764174128020,28.99622822,138.03,137.98,4.78252447]
[1764174128226,0.66,138.02,137.99,3.22]
[1764174128817,0.66,138.02,137.99,10.46680079]
[1764174129010,0.66,138.02,137.99,3.22]
[1764174129211,0.66,138.02,137.99,10.46688075]
[1764174129434,16.308864,138.03,137.99,15.91940522]
[1764174129727,0.66,138.03,137.99,15.91940522]
[1764174130431,0.66,138.04,138.0,5.45252447]
[1764174130733,16.308864,138.05,138.01,4.78252447]
[1764174130905,0.66,138.05,138.02,3.22]
[1764174131102,5.44252447,138.04,137.99,3.22]
[1764174131331,0.66,138.04,138.0,4.78252447]
[1764174131627,0.66,138.04,137.99,3.89]
[1764174131628,0.66,138.03,137.99,8.00252447]
[1764174131826,16.968864,138.03,137.99,8.00252447]
[1764174132024,16.968864,138.03,137.99,3.22]
[1764174132325,0.66,138.02,137.99,3.22]
[1764174132515,7.90540228,138.02,137.99,3.22]
[1764174135803,7.24540228,138.02,137.99,3.22]
[1764174136217,7.96540228,138.02,137.99,3.22]
[1764174137834,23.55389371,138.03,137.99,15.24930285]
[1764174138025,0.72,138.02,137.99,15.24930285]
[1764174138638,0.72,138.02,137.99,3.22]
[1764174138813,23.55389371,138.03,137.99,3.89]
[1764174139138,24.27389371,138.03,137.99,11.13669387]
[1764174139441,24.27389371,138.03,137.99,3.22]
[1764174139613,23.55389371,138.03,137.99,3.22]
[1764174139812,4.78252447,138.01,137.97,62.3]
[1764174140010,7.24637681,138.0,137.96,77.55071033]
[1764174140211,7.96637681,138.0,137.96,3.22]
[1764174140416,4.78252447,137.98,137.96,3.22]
[1764174140933,0.72,137.97,137.96,3.22]
[1764174141325,16.308864,138.0,137.96,3.89]
[1764174141534,16.308864,138.0,137.96,8.00252447]
[1764174141732,16.308864,138.0,137.96,3.89]
[1764174141938,16.308864,138.0,137.96,3.22]
[1764174141939,5.50252447,137.99,137.96,3.22]
[1764174142137,7.24742716,137.98,137.96,3.22]
[1764174142350,7.96742716,137.98,137.96,3.22]
[1764174142523,0.72,137.97,137.96,3.22]
[1764174143334,0.72,137.97,137.93,3.22]
[1764174143335,5.50252447,137.97,137.93,3.22]
[1764174143853,4.78252447,137.95,137.93,3.22]
[1764174144051,12.03228355,137.94,137.9,7.25147995]
[1764174144233,28.34114755,137.94,137.9,3.22]
[1764174144553,5.50252447,137.93,137.9,3.22]
[1764174145049,0.72,137.92,137.9,3.22]
[1764174145847,5.50252447,137.92,137.9,3.22]
[1764174146033,5.50252447,137.92,137.87,15.25553]
[1764174146226,7.97110579,137.91,137.87,15.25553]
[1764174146426,0.72,137.91,137.87,15.92553]
[1764174146929,21.81138847,137.91,137.87,3.22]
[1764174147128,4.78252447,137.89,137.87,3.22]
[1764174147329,4.78252447,137.88,137.84,3.22]
[1764174147829,5.50252447,137.87,137.84,3.22]
[1764174148056,0.72,137.87,137.84,3.22]
[1764174148231,16.308864,137.89,137.85,0.67]
[1764174148430,3.22,137.91,137.85,5.45252447]
[1764174148431,5.50252447,137.91,137.85,5.45252447]
[1764174148752,29.06269699,137.91,137.86,4.78252447]
[1764174148970,29.06269699,137.91,137.85,0.67]
[1764174148971,29.06269699,137.91,137.85,5.45252447]
[1764174149260,4.78252447,137.89,137.84,3.22]
[1764174149631,0.72,137.88,137.84,3.22]
[1764174150246,7.25320954,137.87,137.84,3.22]
[1764174150439,24.28158176,137.88,137.84,3.22]
[1764174150755,24.28158176,137.88,137.84,15.25723491]
[1764174150957,24.28158176,137.88,137.84,8.00252447]
[1764174151137,24.28158176,137.88,137.84,15.25716165]
[1764174151835,5.50252447,137.87,137.84,3.22]
[1764174152138,12.75577897,137.87,137.84,3.22]
[1764174152453,23.56175261,137.88,137.84,3.89]
[1764174152702,24.28175261,137.88,137.84,3.89]
[1764174152837,54.39561509,137.92,137.87,4.78252447]
[1764174152838,16.308864,137.89,137.87,4.78252447]
[1764174153034,23.62942323,137.92,137.87,4.78252447]
[1764174153229,0.72,137.91,137.88,4.78252447]
[1764174153635,0.72,137.91,137.87,5.45252447]
[1764174153931,7.97117041,137.91,137.86,12.03612321]
[1764174154154,7.97117041,137.91,137.87,4.78252447]
[1764174154947,24.27961784,137.92,137.88,8.00252447]
[1764174155258,24.27961784,137.92,137.88,8.67252447]
[1764174155563,7.25021524,137.93,137.89,4.78252447]
[1764174155754,7.97021524,137.93,137.89,4.78252447]
[1764174156443,7.97021524,137.93,137.89,12.03464555]
[1764174156763,7.97021524,137.93,137.89,12.70464555]
[1764174156968,23.55842052,137.94,137.9,5.45252447]
[1764174157154,12.03113094,137.96,137.91,4.78252447]
[1764174157345,0.72,137.96,137.91,4.78252447]
[1764174157544,12.03016477,137.98,137.93,4.78252447]
[1764174157742,7.96860028,137.96,137.92,15.25291591]
[1764174157946,0.72,137.96,137.92,15.25291591]
[1764174158163,0.72,137.96,137.92,15.92291591]
[1764174158438,0.72,137.96,137.92,15.25291591]
[1764174159368,7.96851315,137.96,137.92,15.25291591]
[1764174159761,7.96851315,137.96,137.92,8.00252447]
[1764174159957,0.72,137.95,137.92,3.22]
[1764174161152,7.96913587,137.95,137.92,3.22]
[1764174161351,34.42948898,137.97,137.93,4.78252447]
[1764174161352,23.55703414,137.97,137.93,4.78252447]
[1764174161579,24.27703414,137.97,137.93,4.78252447]
[1764174162148,0.72,137.96,137.93,4.78252447]
[1764174162471,7.9685815,137.96,137.93,4.78252447]
[1764174162871,0.72,137.95,137.92,3.22]
[1764174163447,0.72,137.95,137.92,8.00252447]
[1764174164257,7.2485815,137.96,137.92,8.00252447]
[1764174164669,7.9585815,137.96,137.92,3.22]
[1764174164876,7.9585815,137.96,137.92,8.00252447]
[1764174165680,7.9585815,137.96,137.92,3.22]
[1764174165863,7.9585815,137.96,137.92,8.00252447]
[1764174166053,7.9585815,137.96,137.92,15.25305962]
[1764174167975,0.71,137.95,137.92,15.25305962]
[1764174168151,23.55690253,137.97,137.93,4.78252447]
[1764174168874,24.26690253,137.97,137.93,5.48252447]
[1764174169279,29.049427,137.97,137.93,0.7]
[1764174169684,0.71,137.96,137.92,3.22]
[1764174170364,30.15403588,137.95,137.9,4.78252447]
[1764174170568,17.018864,137.94,137.9,4.78252447]
[1764174171073,0.71,137.93,137.9,4.78252447]
[1764174171392,7.25058004,137.92,137.89,15.25447343]
[1764174171759,0.71,137.92,137.89,15.25447343]
[1764174171967,0.71,137.92,137.89,3.22]
[1764174174172,0.71,137.92,137.89,15.25467107]
[1764174174373,24.26921195,137.93,137.9,4.78252447]
[1764174174580,24.26921195,137.93,137.89,8.70252447]
[1764174175080,46.46687235,137.93,137.89,3.22]
[1764174175283,5.49252447,137.92,137.89,3.22]
[1764174175582,5.49252447,137.92,137.87,4.78252447]
[1764174175881,0.71,137.91,137.87,4.78252447]
[1764174176182,7.9616091,137.91,137.87,4.78252447]
[1764174176680,0.71,137.9,137.86,11.17349919]
[1764174176887,0.71,137.9,137.87,4.78252447]
[1764174177470,0.71,137.9,137.86,15.95602366]
[1764174178282,7.96183803,137.9,137.86,15.95602366]
[1764174180091,0.71,137.9,137.87,4.78252447]
[1764174180392,7.2512279,137.91,137.87,5.48252447]
[1764174180603,7.9612279,137.91,137.87,3.76794577]
[1764174180769,23.55905719,137.93,137.89,3.06794577]
[1764174180971,16.308864,137.93,137.9,3.06794577]
[1764174181192,17.018864,137.93,137.89,6.98794577]
[1764174181392,0.71,137.92,137.89,6.98794577]
[1764174181583,23.55901854,137.93,137.89,6.98794577]
[1764174181788,0.71,137.92,137.89,3.22]
[1764174182792,7.96062068,137.92,137.89,3.22]
[1764174183775,7.25062068,137.92,137.89,3.22]
[1764174183989,7.96143996,137.91,137.89,3.22]
[1764174184970,0.71,137.9,137.89,3.22]
[1764174185377,0.71,137.9,137.87,3.22]
[1764174185978,7.96192323,137.9,137.87,3.22]
[1764174186988,7.25192323,137.9,137.87,3.22]
[1764174187190,7.25192323,137.9,137.87,6.28794577]
[1764174187484,7.25135614,137.91,137.87,13.54106909]
[1764174188196,7.25135614,137.91,137.87,6.28794577]
[1764174188376,7.25135614,137.91,137.87,13.54104801]
[1764174188708,7.2508356,137.92,137.88,3.06794577]
[1764174189695,7.2508356,137.92,137.88,10.32033807]
[1764174190189,23.55893477,137.93,137.88,10.32033807]
[1764174190695,16.308864,137.93,137.9,3.06794577]
[1764174190901,139.73315871,138.0,137.92,3.06794577]
[1764174190902,3.06794577,137.98,137.92,3.06794577]
[1764174191196,3.06794577,137.98,137.92,6.28794577]
[1764174191593,16.308864,137.96,137.92,6.28794577]
[1764174191795,18.11933315,137.98,137.93,3.06794577]
[1764174192100,3.06794577,138.0,137.94,3.06794577]
[1764174192307,16.308864,137.98,137.95,3.22]
[1764174193206,19.37680977,137.98,137.95,3.22]
[1764174193604,19.37680977,137.98,137.92,7.25023218]
[1764174193605,3.06794577,137.98,137.93,3.06794577]
[1764174193801,7.24795245,137.97,137.93,10.31784701]
[1764174194699,37.49468869,137.99,137.93,10.31784701]
[1764174194700,7.24758696,137.98,137.94,3.06794577]
[1764174196090,23.55598701,137.99,137.94,10.31715261]
[1764174196285,26.62393278,137.99,137.94,10.31715261]
[1764174198313,23.55598701,137.99,137.95,3.06794577]
[1764174198895,26.62393278,137.99,137.93,10.31791286]
[1764174199088,3.06794577,137.98,137.93,7.24996709]
[1764174200613,7.24795245,137.97,137.93,10.31791286]
[1764174201212,7.24795245,137.97,137.92,10.47043952]
[1764174201412,16.308864,137.99,137.94,3.06794577]
[1764174201590,16.308864,137.99,137.95,3.06794577]
[1764174202413,23.55598808,137.99,137.95,3.06794577]
[1764174202717,23.55598808,137.99,137.94,10.31713489]
[1764174203714,26.62393385,137.99,137.94,10.31713489]
[1764174204012,3.06794577,137.98,137.93,7.2498531]
[1764174204220,3.06794577,137.98,137.93,10.31779887]
[1764174204517,44.74118872,137.99,137.93,10.31779887]
[1764174206821,41.67324295,137.99,137.95,3.06794577]
[1764174207598,41.67324295,137.99,137.94,10.31734848]
[1764174207798,44.74118872,137.99,137.94,10.31734848]
[1764174209199,44.74118872,137.99,137.93,10.31800014]
[1764174210023,44.74118872,137.99,137.94,3.06794577]
[1764174210318,44.74118872,137.99,137.94,10.3172892]
[1764174210916,41.67324295,137.99,137.94,10.3172892]
[1764174211318,44.74118872,137.99,137.94,10.3172892]
[1764174211519,44.74118872,137.99,137.94,3.06794577]
[1764174211720,3.06794577,137.98,137.93,7.25005437]
[1764174211899,3.06794577,137.98,137.93,10.31800014]
[1764174212098,44.74118872,137.99,137.93,10.31800014]
[1764174212620,44.74118872,137.99,137.93,3.06794577]
[1764174213003,16.308864,137.99,137.95,3.06794577]
[1764174213407,16.308864,137.99,137.96,3.06794577]
[1764174213915,16.308864,137.99,137.96,10.31640804]
[1764174214095,23.55585048,137.99,137.95,10.31673177]
[1764174214614,3.06794577,137.98,137.92,3.22]
[1764174214805,3.06794577,137.98,137.92,6.28794577]
[1764174215209,26.62379625,137.99,137.93,3.06794577]
[1764174215620,26.62379625,137.99,137.94,7.24952878]
[1764174215921,44.74105112,137.99,137.94,7.24952878]
[1764174216109,44.74105112,137.99,137.93,10.31775407]
[1764174216621,41.67310535,137.99,137.94,3.06794577]
[1764174216831,23.55585048,137.99,137.94,3.06794577]
[1764174217726,44.74105112,137.99,137.94,10.31743531]
[1764174217932,23.55585048,137.99,137.94,10.31743531]
[1764174218302,16.308864,137.99,137.95,3.06794577]
[1764174218523,23.55583385,137.99,137.95,3.06794577]
[1764174218908,23.55583385,137.99,137.94,28.44125726]
[1764174219415,23.55583385,137.99,137.96,7.24847781]
[1764174219608,16.308864,137.99,137.96,7.24847781]
[1764174219808,23.55578599,137.99,137.95,10.31684218]
[1764174220931,23.55578599,137.99,137.96,3.22]
[1764174225829,3.78941277,138.04,137.98,3.06794577]
[1764174226131,7.24427702,138.04,137.99,3.06794577]
[1764174226330,16.308864,138.03,137.99,3.06794577]
[1764174226706,7.24427702,138.04,137.99,3.06794577]
[1764174226906,16.308864,138.03,137.99,3.06794577]
[1764174227815,7.24532676,138.02,137.96,21.34119454]
[1764174228014,7.24532676,138.02,137.98,3.06794577]
[1764174230530,7.24532676,138.02,137.97,7.2476226]
[1764174230715,7.24532676,138.02,137.98,3.06794577]
[1764174231033,7.24532676,138.02,137.97,7.2476226]
[1764174231235,7.24532676,138.02,137.98,3.06794577]
[1764174231534,7.24532676,138.02,137.99,3.06794577]
[1764174233139,7.24532676,138.02,137.97,25.36750373]
[1764174233335,23.55388738,138.03,137.99,3.06794577]
[1764174234132,23.55388738,138.03,137.99,10.31469505]
[1764174235335,16.308864,138.03,137.99,10.31469505]
[1764174235533,16.308864,138.04,138.0,6.28794577]
[1764174235721,16.308864,138.04,138.01,3.06794577]
[1764174236131,23.55314937,138.04,138.01,3.06794577]
[1764174236323,16.308864,138.04,138.01,3.06794577]
[1764174237124,7.24375226,138.05,138.0,3.22]
[1764174237325,23.55261626,138.05,138.0,3.22]
[1764174237839,23.55261626,138.05,138.01,7.24585174]
[1764174240342,0.1,138.07,138.04,3.06794577]
[1764174240637,0.1,138.07,138.05,3.06794577]
[1764174240829,0.1,138.07,138.04,6.28794577]
[1764174241030,0.1,138.07,138.05,3.06794577]
[1764174241626,0.1,138.07,138.04,3.22]
[1764174241825,0.1,138.07,138.04,6.28794577]
[1764174242623,0.1,138.07,138.04,3.22]
[1764174242836,0.1,138.07,138.04,8.00300683]
[1764174243038,0.1,138.07,138.04,3.22]
[1764174243649,0.1,138.07,138.02,4.78300683]
[1764174244150,0.1,138.07,138.02,12.02819041]
[1764174244651,16.308864,138.04,138.01,3.22]
[1764174244851,21.09187083,138.04,138.01,3.22]
[1764174245330,12.02980627,138.03,138.01,3.22]
[1764174245524,21.09187083,138.04,138.01,3.22]
[1764174245726,34.42812203,138.04,138.01,3.22]
[1764174247052,34.42812203,138.04,137.92,18.12572086]
[1764174247053,41.67284615,138.04,137.92,18.12572086]
[1764174247232,4.78300683,138.0,137.93,12.02994492]
[1764174247435,4.78300683,138.02,137.96,4.78300683]
[1764174247747,9.09426806,138.03,137.97,4.78300683]
[1764174247929,4.78300683,138.02,137.97,4.78300683]
[1764174249135,12.02885857,138.01,137.93,3.22]
[1764174249338,12.02885857,138.01,137.95,4.78300683]
[1764174249556,30.14348794,138.01,137.96,4.78300683]
[1764174250430,12.02885857,138.01,137.96,4.78300683]
[1764174251141,21.34513593,138.0,137.96,12.0314056]
[1764174251667,21.34513593,138.0,137.96,7.24839877]
[1764174251843,21.34513593,138.0,137.96,12.0314056]
[1764174252953,28.59186112,138.0,137.96,12.0314056]
[1764174253152,21.34513593,138.0,137.96,12.0314056]
[1764174253957,28.5916717,138.0,137.96,12.0314056]
[1764174255344,39.20330293,138.04,137.99,4.78300683]
[1764174256064,60.98584059,138.04,137.99,4.78300683]
[1764174256558,7.24515291,138.03,137.97,10.46774865]
[1764174256866,7.24515291,138.03,137.99,4.78300683]
[1764174257844,30.14016437,138.03,137.98,4.78300683]
[1764174258249,25.35715754,138.03,137.98,4.78300683]
[1764174259553,7.24515291,138.03,137.99,4.78300683]
[1764174259748,4.88300683,138.07,138.02,4.78300683]
[1764174260546,7.34290187,138.07,138.03,4.78300683]
[1764174260769,16.308864,138.06,138.03,4.78300683]
[1764174261063,16.308864,138.06,138.02,4.78300683]
[1764174261859,7.24375226,138.05,138.02,4.78300683]
[1764174262669,23.55233668,138.06,138.02,4.78300683]
[1764174262844,23.55233668,138.06,138.03,4.78300683]
[1764174263458,16.308864,138.06,138.03,4.78300683]
[1764174263670,0.1,138.07,138.04,4.78300683]
[1764174263869,7.34273244,138.07,138.04,4.78300683]
[1764174264170,7.34273244,138.07,138.03,4.78300683]
[1764174264765,7.34273244,138.07,138.04,4.78300683]
[1764174266251,7.34273244,138.07,138.03,4.78300683]
[1764174266454,25.44948988,138.07,138.02,8.00300683]
[1764174267459,25.44948988,138.07,138.02,15.24821663]
[1764174267864,25.44948988,138.07,138.02,8.00300683]
[1764174268165,30.23249671,138.07,138.02,3.22]
[1764174268547,4.78300683,138.06,138.02,3.22]
[1764174268750,25.44948988,138.07,138.02,3.22]
[1764174268957,4.78300683,138.06,138.02,3.22]
[1764174270174,30.23249671,138.07,138.02,3.22]
[1764174270378,7.24613856,138.06,138.02,3.22]
[1764174270952,7.24613856,138.06,138.02,8.00300683]
[1764174271155,7.24375226,138.05,138.02,8.00300683]
[1764174271367,14.48962313,138.06,138.02,8.00300683]
[1764174272366,32.59769208,138.06,138.02,8.00300683]
[1764174275462,37.38069891,138.06,138.02,3.22]
[1764174275661,37.38069891,138.06,138.01,4.78300683]
[1764174278281,37.38069891,138.06,138.0,7.24629428]
[1764174278282,7.24629428,138.05,138.0,4.78300683]
[1764174279272,7.24629428,138.05,138.0,12.02935157]
[1764174280769,7.24427702,138.04,138.0,12.02935157]
[1764174281968,14.49010237,138.05,138.01,4.78300683]
[1764174282159,14.49010237,138.05,138.02,4.78300683]
[1764174282362,7.24365539,138.06,138.03,4.78300683]
[1764174282588,14.49000013,138.06,138.03,4.78300683]
[1764174282982,32.59806908,138.06,138.02,4.78300683]
[1764174283172,14.49000013,138.06,138.02,4.78300683]
[1764174283487,14.48967209,138.06,138.03,4.78300683]
[1764174284793,7.34295008,138.07,138.04,4.78300683]
[1764174285396,7.34295008,138.07,138.05,4.78300683]
[1764174286191,7.34295008,138.07,138.04,4.78300683]
[1764174289691,0.1,138.07,138.05,4.78300683]
[1764174290003,0.1,138.07,138.06,4.78300683]
[1764174291907,0.1,138.07,138.05,7.24375226]
[1764174292095,0.1,138.07,138.06,4.78300683]
[1764174292293,0.1,138.07,138.06,8.00300683]
[1764174293406,0.1,138.07,138.06,15.24623441]
[1764174295182,0.1,138.07,138.06,3.22]
[1764174295394,0.1,138.07,138.06,8.00300683]
[1764174296008,0.1,138.07,138.06,15.24623441]
[1764174296188,0.1,138.07,138.06,8.00300683]
[1764174296500,0.1,138.07,138.06,15.24623441]
[1764174297710,0.1,138.07,138.06,10.46322758]
[1764174297900,0.1,138.07,138.06,15.24623441]
[1764174298104,6.84137489,138.1,138.06,15.24623441]
[1764174298809,23.64973267,138.11,138.06,10.46322758]
[1764174299124,46.53425278,138.11,138.06,8.00300683]
[1764174300005,46.53425278,138.11,138.06,15.24619081]
[1764174300493,46.53425278,138.11,138.06,8.00300683]
[1764174300691,23.64973267,138.11,138.06,15.24605217]
[1764174301112,28.4327395,138.11,138.06,15.24605217]
[1764174301415,23.64973267,138.11,138.06,15.24605217]
[1764174301619,28.4327395,138.11,138.06,15.24605217]
[1764174301805,23.64973267,138.11,138.07,4.78300683]
[1764174301982,0.1,138.11,138.08,4.78300683]
[1764174302187,0.1,138.11,138.09,8.00300683]
[1764174302911,0.1,138.11,138.1,4.78300683]
[1764174304192,0.1,138.11,138.1,18.66028172]
[1764174304416,1e-08,138.11,138.1,18.66028172]
[1764174304595,1e-08,138.11,138.1,28.45961934]
[1764174304790,1e-08,138.11,138.1,35.70074895]
[1764174305304,1e-08,138.11,138.1,38.75723623]
[1764174305590,1e-08,138.11,138.1,35.70074895]
[1764174306511,1e-08,138.11,138.1,10.46112961]
[1764174306702,1e-08,138.11,138.1,26.76999361]
[1764174306908,1e-08,138.11,138.1,13.51761689]
[1764174308215,1e-08,138.11,138.1,22.61188495]
[1764174309395,1e-08,138.11,138.1,38.63642581]
[1764174309617,1e-08,138.11,138.1,38.92074895]
[1764174312197,1e-08,138.11,138.07,3.05648728]
[1764174312403,1e-08,138.11,138.08,3.22]
[1764174314194,1e-08,138.11,138.08,10.46217586]
[1764174314400,1e-08,138.11,138.08,3.22]
[1764174314806,1e-08,138.11,138.08,10.462076]
[1764174315206,1e-08,138.11,138.08,3.22]
[1764174315407,3.05648729,138.11,138.08,3.22]
[1764174316013,1e-08,138.11,138.08,3.22]
[1764174316823,7.24060532,138.11,138.08,3.22]
[1764174318823,1e-08,138.11,138.08,13.51859752]
[1764174319823,1e-08,138.11,138.09,3.05648728]
[1764174320515,1e-08,138.11,138.08,31.62404363]
[1764174320716,1e-08,138.11,138.08,13.51859752]
[1764174321523,1e-08,138.11,138.1,3.05648728]
[1764174321728,1e-08,138.11,138.1,28.45961934]
[1764174322026,0.1,138.16,138.11,9.09426806]
[1764174322209,0.1,138.16,138.15,3.05648728]
[1764174322411,0.1,138.16,138.15,3.22]
[1764174322723,0.1,138.16,138.15,6.27648728]
[1764174322908,0.1,138.16,138.15,13.51499614]
[1764174323110,0.1,138.16,138.15,3.22]
[1764174323724,0.1,138.16,138.15,6.27648728]
[1764174323925,0.1,138.16,138.15,10.45850886]
[1764174324134,0.1,138.16,138.15,3.22]
[1764174326014,0.1,138.16,138.15,10.45850886]
[1764174326324,0.1,138.16,138.15,3.22]
[1764174326822,0.1,138.16,138.15,10.45850886]
[1764174327208,0.1,138.16,138.15,3.22]
[1764174327529,0.1,138.16,138.15,13.51499614]
[1764174328630,0.1,138.16,138.15,10.45850886]
[1764174329531,0.1,138.16,138.15,3.22]
[1764174330226,0.1,138.16,138.15,10.45850886]
[1764174330805,0.1,138.16,138.15,3.22]
[1764174331413,0.1,138.16,138.15,10.45850886]
[1764174331616,0.1,138.16,138.15,3.22]
[1764174339746,0.1,138.16,138.15,10.45850886]
[1764174340139,0.1,138.16,138.15,3.22]
[1764174340865,10.39447222,138.16,138.15,3.22]
[1764174341148,10.39447222,138.16,138.13,3.2]
[1764174341738,3.05648728,138.15,138.13,3.2]
[1764174341915,3.05648728,138.14,138.09,3.05648728]
[1764174342115,3.05648728,138.12,138.1,3.2]
[1764174342319,3.05648728,138.11,138.05,7.24354809]
[1764174342568,3.05648728,138.1,138.06,3.2]
[1764174342930,7.24165399,138.09,138.06,3.2]
[1764174343129,10.29814127,138.09,138.06,3.2]
[1764174343328,3.05648728,138.07,138.06,3.2]
[1764174343734,3.05648728,138.08,138.06,3.2]
[1764174343933,3.05648728,138.07,138.06,3.2]
[1764174344244,3.05648728,138.07,138.01,3.2]
[1764174344245,16.308864,138.06,138.01,3.2]
[1764174344422,3.05648728,138.05,138.01,3.2]
[1764174345058,10.30060371,138.05,138.01,3.2]
[1764174345432,26.60874526,138.06,138.01,10.44581099]
[1764174345738,26.60874526,138.06,138.01,13.50229827]
[1764174347125,41.66032693,138.06,138.01,3.2]
[1764174347337,3.05648728,138.04,138.01,3.2]
[1764174347645,3.05648728,138.04,138.0,3.22]
[1764174347838,3.05648728,138.05,138.0,3.22]
[1764174348163,10.30072944,138.05,138.0,3.22]
[1764174348335,10.30072944,138.05,138.0,10.46615694]
[1764174348527,16.308864,138.06,138.0,3.22]
[1764174348741,19.36535128,138.05,138.0,13.52277449]
[1764174348948,19.36535128,138.05,138.01,3.05648728]
[1764174348949,16.308864,138.05,138.01,3.05648728]
[1764174350059,10.29935882,138.07,138.01,3.05648728]
[1764174350267,3.05648728,138.05,138.0,3.22]
[1764174350551,19.36535128,138.03,138.0,3.22]
[1764174351250,19.36535128,138.03,137.97,6.27648728]
[1764174352046,19.36535128,138.03,137.97,13.5243188]
[1764174352252,7.24532676,138.02,137.97,13.5243188]
[1764174353051,10.30181404,138.02,137.97,13.5243188]
[1764174353362,23.55373771,138.03,137.97,13.5243188]
[1764174353655,3.22,138.06,137.98,9.09426806]
[1764174353656,3.05648728,138.06,137.98,9.09426806]
[1764174353826,3.05648728,138.05,138.0,3.05648728]
[1764174354030,19.36535128,138.04,137.98,3.05648728]
[1764174354224,7.24480185,138.03,137.98,10.30377196]
[1764174354654,7.24480185,138.03,137.98,7.24728468]
[1764174354854,7.24480185,138.03,137.98,10.30377196]
[1764174355257,7.24480185,138.03,137.98,3.05648728]
[1764174355427,7.24480185,138.03,137.97,3.22]
[1764174355428,16.308864,138.02,137.97,3.22]
[1764174355633,19.36535128,138.02,137.97,13.52443229]
[1764174356048,7.24480185,138.03,137.99,3.05648728]
[1764174356557,7.24480185,138.03,137.97,28.58782614]
[1764174356558,10.30128913,138.03,137.98,3.05648728]
[1764174357053,10.30128913,138.03,137.97,13.52443229]
[1764174357656,10.30128913,138.03,137.98,3.05648728]
[1764174358051,28.41329376,138.03,137.97,10.46794501]
[1764174358248,28.41329376,138.03,137.97,13.52443229]
[1764174358952,28.41329376,138.03,137.98,3.05648728]
[1764174359160,10.30128913,138.03,137.98,3.05648728]
[1764174359460,7.24480185,138.03,137.98,3.05648728]
[1764174359654,7.24480185,138.03,137.97,28.58782614]
[1764174359963,10.30128913,138.03,137.97,3.22]
[1764174360146,10.30128913,138.03,137.97,6.27648728]
[1764174360147,3.05648728,138.02,137.97,6.27648728]
[1764174360345,25.35680648,138.03,137.99,3.05648728]
[1764174360542,25.35680648,138.03,137.98,3.05648728]
[1764174360844,28.41329376,138.03,137.97,6.27648728]
[1764174361462,28.41329376,138.03,137.97,13.52443814]
[1764174361762,28.41329376,138.03,137.98,10.30383611]
[1764174361964,23.55324459,138.04,137.99,3.05648728]
[1764174362260,26.60973187,138.04,137.98,10.30383611]
[1764174362461,3.05648728,138.03,137.98,10.30383611]
[1764174362653,3.05648728,138.03,137.98,3.05648728]
[1764174362869,3.05648728,138.03,137.98,10.30391193]
[1764174363162,3.05648728,138.03,137.98,3.05648728]
[1764174363866,3.05648728,138.03,137.98,10.30380306]
[1764174364645,4.78639427,138.03,137.98,4.78639427]
[1764174366162,7.24532676,138.02,137.98,12.03377828]
[1764174366864,7.24501705,138.03,137.98,12.03377828]
[1764174367069,7.24501705,138.03,137.99,4.78639427]
[1764174367243,7.24501705,138.03,138.0,4.78639427]
[1764174368466,12.03067129,138.04,137.99,4.78639427]
[1764174369154,30.14136384,138.04,137.97,72.76772367]
[1764174369357,30.14136384,138.04,137.98,4.78639427]
[1764174369555,30.14136384,138.04,137.97,72.76772367]
[1764174369766,4.78639427,138.02,137.97,77.55411794]
[1764174369963,4.78639427,138.02,137.97,70.30639427]
[1764174370355,28.34155067,138.01,137.97,65.52]
[1764174370657,23.5551564,138.01,137.97,70.30639427]
[1764174371053,41.66978577,138.01,137.97,3.22]
[1764174371765,46.45618004,138.01,137.97,3.22]
[1764174372072,46.45618004,138.01,137.94,7.44928704]
[1764174372274,4.78639427,137.99,137.94,0.2]
[1764174372455,4.78639427,137.99,137.94,4.98639427]
[1764174372456,7.24742716,137.98,137.94,4.98639427]
[1764174372855,22.90034376,138.02,137.96,4.78639427]
[1764174373163,23.55471574,138.01,137.96,4.78639427]
[1764174374247,46.45573938,138.01,137.94,7.44939485]
[1764174374449,46.45573938,138.01,137.95,12.03508275]